[Event "Prague Festival-Futures 2022"]
[Site "Prague"]
[Date "2022.06.16"]
[Round "8.4"]
[White "Bokhnak, Timofey"]
[Black "Kovalskyi, Roman"]
[Result "1/2-1/2"]
[ECO "A14"]
[WhiteElo "2060"]
[BlackElo "2039"]
[Annotator "NA RC"]
[PlyCount "117"]
[EventDate "2022.06.07"]
[EventType "tourn"]
[EventCountry "CZE"]
[SourceTitle "playchess.com"]
[Source "ChessBase"]
[SourceQuality "1"]
[TimeControl "40/5400+30:1800+30"]

1. c4 {[%emt 0:00:05]} e6 {[%emt 0:01:07]} 2. g3 {[%emt 0:00:14]} d5 {[%emt 0:00:07]} 3. Bg2 {[%emt 0:00:09]} Nf6 {[%emt 0:00:15]} 4. Nf3 {[%emt 0:00:07]} Be7 {[%emt 0:01:54]} 5. O-O {[%emt 0:00:12]} O-O {[%emt 0:00:05]} 6. b3 {[%emt 0:00:04]} c5 {[%emt 0:00:36]} 7. Bb2 {[%emt 0:00:08]} Nc6 {[%emt 0:00:04]} 8. e3 {[%emt 0:00:28]} b6 {[%emt 0:00:40]} 9. Qe2 {[%emt 0:00:08]} Bb7 {[%emt 0:01:44]} 10. d3 {[%emt 0:00:06]} Qc7 {[%emt 0:01:01]} 11. Nc3 {[%emt 0:03:42]} Rac8 {[%emt 0:00:52]} 12. Rfd1 {[%emt 0:00:17]} Rfd8 {[%emt 0:00:10]} 13. Rd2 {[%emt 0:01:59]} Qb8 {[%emt 0:03:38]} 14. Rad1 {[%emt 0:01:24]} Na5 {[%emt 0:10:02]} 15. Ne1 {[%emt 0:14:11]} h6 {[%emt 0:07:25]} 16. f4 {[%emt 0:09:01]} a6 {[%emt 0:07:17]} 17. h3 {[%emt 0:07:45]} Bc6 {[%emt 0:02:26]} 18. e4 {[%emt 0:05:37]} d4 {[%emt 0:08:18]} 19. Nb1 {[%emt 0:01:20]} e5 {[%emt 0:00:07]} 20. f5 {[%emt 0:01:01]} Kf8 {[%emt 0:05:39]} 21. Rc2 {[%emt 0:01:54]} Nh7 {[%emt 0:02:49]} 22. Nf3 {[%emt 0:06:35]} Ng5 {[%emt 0:06:16]} 23. Nbd2 {[%emt 0:03:14]} Nxf3+ {[%emt 0:02:23]} 24. Nxf3 {[%emt 0:00:03]} b5 {[%emt 0:06:17]} 25. Bc1 {[%emt 0:02:55]} bxc4 {[%emt 0:09:53]} 26. dxc4 {[%emt 0:00:25]} Be8 {[%emt 0:00:45]} 27. Ne1 {[%emt 0:03:56]} Nc6 {[%emt 0:01:43]} 28. h4 {[%emt 0:04:42]} f6 {[%emt 0:12:49]} 29. Nd3 {[%emt 0:06:42]} Nb4 {[%emt 0:00:07]} 30. Rb2 {[%emt 0:00:40]} Nxd3 {[%emt 0:02:06]} 31. Rxd3 {[%emt 0:00:18]} Qc7 {[%emt 0:00:03]} 32. g4 {[%emt 0:00:26]} Bf7 {[%emt 0:03:41]} 33. g5 {[%emt 0:02:54]} hxg5 {[%emt 0:00:07]} 34. hxg5 {[%emt 0:00:03]} fxg5 {[%emt 0:00:06]} 35. Qg4 {[%emt 0:01:36]} Bf6 {[%emt 0:00:04]} 36. Bxg5 {[%emt 0:02:10]} Ke7 {[%emt 0:00:04]} 37. Bf3 {[%emt 0:05:53]} Rh8 {[%emt 0:01:16]} 38. Qg3 {[%emt 0:00:52]} Rb8 {[%emt 0:02:55]} 39. Rdd2 {[%emt 0:04:43]} a5 {[%emt 0:01:46]} 40. Rh2 {[%emt 0:00:00]} Kd6 {[%emt 0:00:00]} 41. Rxh8 {[%emt 0:04:58]} Rxh8 {[%emt 0:01:27]} 42. Rg2 {[%emt 0:00:04]} Ke7 {[%emt 0:04:40]} 43. Qf2 {[%emt 0:06:46]} Qd6 {[%emt 0:05:06]} 44. Qd2 {[%emt 0:00:23]} Qb6 {[%emt 0:14:12]} 45. Rg3 {[%emt 0:01:35]} Kf8 {[%emt 0:02:26]} 46. Qg2 {[%emt 0:14:07]} Bxg5 {[%emt 0:01:21]} 47. Rxg5 {[%emt 0:00:02]} Qh6 {[%emt 0:00:14]} 48. Qg3 {[%emt 0:00:53]} Qh4 {[%emt 0:04:44]} 49. Rxg7 {[%emt 0:00:30]} Qxg3+ {[%emt 0:00:09]} 50. Rxg3 {[%emt 0:00:11]} Rg8 {[%emt 0:00:45]} 51. Rxg8+ {[%emt 0:02:52]} Kxg8 {[%emt 0:00:01]} 52. Kf2 {[%emt 0:03:47]} Kg7 {[%emt 0:00:06]} 53. Kg3 {[%emt 0:01:21]} Kf6 {[%emt 0:00:06]} 54. Kg4 {[%emt 0:01:09]} Be8 {[%emt 0:00:53]} 55. Be2 {[%emt 0:00:11]} Bf7 {[%emt 0:01:13]} 56. Bd3 {[%emt 0:00:42]} Be8 {[%emt 0:00:23]} 57. a3 {[%emt 0:00:30]} Bf7 {[%emt 0:01:11]} 58. Kh4 {[%emt 0:02:32]} Be8 {[%emt 0:00:07]} 59. Kg4 {[%emt 0:01:13]} 1/2-1/2

[Event "Prague Festival-Futures 2022"]
[Site "Prague"]
[Date "2022.06.16"]
[Round "8.5"]
[White "Tolmacevs, Artjoms"]
[Black "Zelbova, Lada"]
[Result "1-0"]
[ECO "B80"]
[WhiteElo "2087"]
[BlackElo "1967"]
[Annotator "NA RC"]
[PlyCount "37"]
[EventDate "2022.06.07"]
[EventType "tourn"]
[EventCountry "CZE"]
[SourceTitle "playchess.com"]
[Source "ChessBase"]
[SourceQuality "1"]
[TimeControl "40/5400+30:1800+30"]

1. e4 {[%emt 0:00:01]} c5 {[%emt 0:00:06]} 2. Nf3 {[%emt 0:00:03]} Nc6 {[%emt 0:00:05]} 3. Nc3 {[%emt 0:00:03]} a6 {[%emt 0:05:23]} 4. d4 {[%emt 0:07:11]} cxd4 {[%emt 0:00:09]} 5. Nxd4 {[%emt 0:00:03]} e6 {[%emt 0:06:05]} 6. g3 {[%emt 0:02:14]} Qc7 {[%emt 0:03:30]} 7. Bg2 {[%emt 0:00:11]} Nf6 {[%emt 0:00:54]} 8. O-O {[%emt 0:00:13]} Be7 {[%emt 0:01:16]} 9. Be3 {[%emt 0:05:02]} O-O {[%emt 0:00:45]} 10. f4 {[%emt 0:01:57]} d6 {[%emt 0:11:34]} 11. f5 {[%emt 0:08:24]} e5 {[%emt 0:17:18]} 12. Nb3 {[%emt 0:04:31]} b5 {[%emt 0:13:50]} 13. a3 {[%emt 0:01:24]} Na5 {[%emt 0:02:17]} 14. Nxa5 {[%emt 0:00:24]} Qxa5 {[%emt 0:00:05]} 15. g4 {[%emt 0:00:55]} Re8 {[%emt 0:02:38]} 16. g5 {[%emt 0:00:21]} Nd7 {[%emt 0:00:15]} 17. Nd5 {[%emt 0:00:08]} Bf8 {[%emt 0:00:36]} 18. g6 {[%emt 0:19:03]} Nf6 {[%emt 0:10:45]} 19. Bb6 {[%emt 0:00:51]} 1-0

[Event "Prague Festival-Futures 2022"]
[Site "Prague"]
[Date "2022.06.17"]
[Round "9.1"]
[White "Kovalskyi, Roman"]
[Black "Tolmacevs, Artjoms"]
[Result "1-0"]
[ECO "B13"]
[WhiteElo "2039"]
[BlackElo "2087"]
[Annotator "NA RC"]
[PlyCount "89"]
[EventDate "2022.06.07"]
[EventType "tourn"]
[EventCountry "CZE"]
[SourceTitle "playchess.com"]
[Source "ChessBase"]
[SourceQuality "1"]
[TimeControl "40/5400+30:1800+30"]

1. e4 {[%emt 0:00:02]} c6 {[%emt 0:00:05]} 2. d4 {[%emt 0:00:05]} d5 {[%emt 0:00:05]} 3. exd5 {[%emt 0:00:03]} cxd5 {[%emt 0:00:06]} 4. Bd3 {[%emt 0:00:03]} Nc6 {[%emt 0:00:06]} 5. c3 {[%emt 0:00:02]} Qc7 {[%emt 0:00:06]} 6. h3 {[%emt 0:00:04]} e5 {[%emt 0:00:04]} 7. dxe5 {[%emt 0:00:05]} Nxe5 {[%emt 0:00:05]} 8. Nf3 {[%emt 0:00:45]} Nxd3+ {[%emt 0:00:06]} 9. Qxd3 {[%emt 0:00:01]} Bd6 {[%emt 0:00:10]} 10. O-O {[%emt 0:00:43]} Ne7 {[%emt 0:00:07]} 11. Nd4 {[%emt 0:00:54]} a6 {[%emt 0:00:35]} 12. Nd2 {[%emt 0:01:09]} O-O {[%emt 0:02:25]} 13. N2f3 {[%emt 0:00:49]} Ng6 {[%emt 0:25:10]} 14. Re1 {[%emt 0:02:39]} Qc4 {[%emt 0:08:27]} 15. Qf1 {[%emt 0:07:36]} Bd7 {[%emt 0:05:07]} 16. Nc2 {[%emt 0:05:09]} Qc7 {[%emt 0:12:16]} 17. Nfd4 {[%emt 0:05:57]} Rfe8 {[%emt 0:00:54]} 18. Bd2 {[%emt 0:01:04]} Re4 {[%emt 0:02:54]} 19. Ne3 {[%emt 0:11:01]} Nh4 {[%emt 0:02:59]} 20. Nxd5 {[%emt 0:06:13]} Rxe1 {[%emt 0:00:49]} 21. Rxe1 {[%emt 0:03:38]} Qc5 {[%emt 0:00:48]} 22. Ne3 {[%emt 0:12:54]} Bc7 {[%emt 0:14:49]} 23. Qe2 {[%emt 0:14:30]} Qd6 {[%emt 0:02:22]} 24. Nf1 {[%emt 0:00:08]} Qg6 {[%emt 0:02:13]} 25. Qe4 {[%emt 0:01:30]} Qxe4 {[%emt 0:03:22]} 26. Rxe4 {[%emt 0:00:46]} Nf5 {[%emt 0:00:03]} 27. Bf4 {[%emt 0:08:56]} Bxf4 {[%emt 0:00:47]} 28. Rxf4 {[%emt 0:00:02]} Nxd4 {[%emt 0:00:08]} 29. Rxd4 {[%emt 0:00:17]} Be6 {[%emt 0:00:05]} 30. c4 {[%emt 0:03:38]} Kf8 {[%emt 0:00:09]} 31. Ne3 {[%emt 0:00:05]} Rc8 {[%emt 0:00:06]} 32. a4 {[%emt 0:02:25]} Rc6 {[%emt 0:02:59]} 33. b4 {[%emt 0:02:23]} Ke7 {[%emt 0:01:49]} 34. Kf1 {[%emt 0:01:39]} Kf6 {[%emt 0:00:53]} 35. Ke2 {[%emt 0:00:36]} g5 {[%emt 0:00:49]} 36. Kd3 {[%emt 0:00:20]} Ke5 {[%emt 0:00:40]} 37. h4 {[%emt 0:06:45]} h6 {[%emt 0:02:42]} 38. hxg5 {[%emt 0:02:37]} hxg5 {[%emt 0:00:06]} 39. g3 {[%emt 0:01:01]} Rc8 {[%emt 0:02:49]} 40. f4+ {[%emt 0:00:00]} gxf4 {[%emt 0:00:00]} 41. gxf4+ {[%emt 0:01:19]} Kf6 {[%emt 0:00:13]} 42. Rd6 {[%emt 0:00:44]} Ke7 {[%emt 0:05:39]} 43. Rb6 {[%emt 0:03:26]} Rc7 {[%emt 0:01:42]} 44. f5 {[%emt 0:03:50]} Rd7+ {[%emt 0:00:10]} 45. Ke4 {[%emt 0:02:13]} 1-0

[Event "Prague Festival-Futures 2022"]
[Site "Prague"]
[Date "2022.06.17"]
[Round "9.2"]
[White "Sowinski, Pawel"]
[Black "Bokhnak, Timofey"]
[Result "1-0"]
[ECO "C00"]
[WhiteElo "2060"]
[BlackElo "2060"]
[Annotator "NA RC"]
[PlyCount "91"]
[EventDate "2022.06.07"]
[EventType "tourn"]
[EventCountry "CZE"]
[SourceTitle "playchess.com"]
[Source "ChessBase"]
[SourceQuality "1"]
[TimeControl "40/5400+30:1800+30"]

1. e4 {[%emt 0:00:03]} e6 {[%emt 0:00:12]} 2. b3 {[%emt 0:00:04]} d5 {[%emt 0:00:05]} 3. Bb2 {[%emt 0:00:02]} Nc6 {[%emt 0:00:06]} 4. exd5 {[%emt 0:01:06]} exd5 {[%emt 0:00:08]} 5. Nf3 {[%emt 0:00:04]} Nf6 {[%emt 0:00:23]} 6. Bb5 {[%emt 0:01:53]} Be7 {[%emt 0:02:45]} 7. Ne5 {[%emt 0:05:09]} Bd7 {[%emt 0:06:15]} 8. Nxd7 {[%emt 0:04:40]} Qxd7 {[%emt 0:00:16]} 9. O-O {[%emt 0:00:06]} O-O-O {[%emt 0:06:06]} 10. d4 {[%emt 0:00:21]} a6 {[%emt 0:00:53]} 11. Bd3 {[%emt 0:00:31]} Ne4 {[%emt 0:16:20]} 12. Nd2 {[%emt 0:07:54]} f5 {[%emt 0:00:42]} 13. f3 {[%emt 0:00:03]} Ng5 {[%emt 0:05:57]} 14. c3 {[%emt 0:04:08]} g6 {[%emt 0:03:05]} 15. b4 {[%emt 0:00:43]} Qd6 {[%emt 0:03:55]} 16. Nb3 {[%emt 0:09:25]} Ne6 {[%emt 0:01:48]} 17. a4 {[%emt 0:02:00]} Kd7 {[%emt 0:08:37]} 18. b5 {[%emt 0:02:20]} Nb8 {[%emt 0:00:14]} 19. Re1 {[%emt 0:02:19]} Rhe8 {[%emt 0:07:08]} 20. c4 {[%emt 0:06:59]} Nf4 {[%emt 0:06:34]} 21. c5 {[%emt 0:07:49]} Qf6 {[%emt 0:00:07]} 22. c6+ {[%emt 0:06:14]} Kc8 {[%emt 0:05:34]} 23. cxb7+ {[%emt 0:00:39]} Kxb7 {[%emt 0:00:05]} 24. Qc2 {[%emt 0:06:00]} Bd6 {[%emt 0:07:42]} 25. Bf1 {[%emt 0:09:44]} Qg5 {[%emt 0:05:41]} 26. g3 {[%emt 0:01:54]} Ne6 {[%emt 0:00:57]} 27. Na5+ {[%emt 0:03:57]} Ka7 {[%emt 0:00:28]} 28. bxa6 {[%emt 0:02:28]} c5 {[%emt 0:03:41]} 29. Nb7 {[%emt 0:01:45]} c4 {[%emt 0:02:05]} 30. Nxd6 {[%emt 0:02:33]} Rxd6 {[%emt 0:00:02]} 31. Ba3 {[%emt 0:00:02]} Rxa6 {[%emt 0:02:12]} 32. Re5 {[%emt 0:04:46]} Rd8 {[%emt 0:00:35]} 33. Rae1 {[%emt 0:00:12]} Qf6 {[%emt 0:00:33]} 34. f4 {[%emt 0:01:33]} Nc7 {[%emt 0:02:21]} 35. Bc5+ {[%emt 0:00:45]} Ka8 {[%emt 0:00:07]} 36. Be7 {[%emt 0:00:02]} Qh8 {[%emt 0:00:33]} 37. Bxd8 {[%emt 0:00:06]} Qxd8 {[%emt 0:00:02]} 38. Re7 {[%emt 0:02:01]} Nc6 {[%emt 0:00:13]} 39. Rxh7 {[%emt 0:00:11]} Nxd4 {[%emt 0:01:20]} 40. Qb2 {[%emt 0:00:00]} Nf3+ {[%emt 0:00:00]} 41. Kf2 {[%emt 0:06:57]} Nxe1 {[%emt 0:03:40]} 42. Rh8 {[%emt 0:00:03]} Ne8 {[%emt 0:01:58]} 43. Qe5 {[%emt 0:00:01]} Kb7 {[%emt 0:08:18]} 44. Rxe8 {[%emt 0:01:26]} Qa5 {[%emt 0:01:03]} 45. Qe7+ {[%emt 0:03:03]} Kc6 {[%emt 0:00:38]} 46. Rc8+ {[%emt 0:00:18]} 1-0

[Event "Prague Festival-Futures 2022"]
[Site "Prague"]
[Date "2022.06.17"]
[Round "9.3"]
[White "Warchol, Kamil"]
[Black "Kuru, Atilla"]
[Result "1/2-1/2"]
[ECO "C02"]
[WhiteElo "2079"]
[BlackElo "2023"]
[Annotator "NA RC"]
[PlyCount "81"]
[EventDate "2022.06.07"]
[EventType "tourn"]
[EventCountry "CZE"]
[SourceTitle "playchess.com"]
[Source "ChessBase"]
[SourceQuality "1"]
[TimeControl "40/5400+30:1800+30"]

1. e4 {[%emt 0:00:04]} e6 {[%emt 0:00:05]} 2. d4 {[%emt 0:00:02]} d5 {[%emt 0:00:04]} 3. e5 {[%emt 0:00:03]} c5 {[%emt 0:00:04]} 4. c3 {[%emt 0:00:05]} Qb6 {[%emt 0:00:03]} 5. Nf3 {[%emt 0:00:16]} Nc6 {[%emt 0:00:04]} 6. a3 {[%emt 0:00:22]} Nh6 {[%emt 0:00:17]} 7. Bd3 {[%emt 0:00:26]} cxd4 {[%emt 0:00:07]} 8. O-O {[%emt 0:00:12]} Bd7 {[%emt 0:01:33]} 9. b4 {[%emt 0:02:30]} Nf5 {[%emt 0:08:05]} 10. Bb2 {[%emt 0:19:40]} Be7 {[%emt 0:02:07]} 11. cxd4 {[%emt 0:11:53]} Nfxd4 {[%emt 0:08:01]} 12. Nxd4 {[%emt 0:16:15]} Nxd4 {[%emt 0:00:07]} 13. Qg4 {[%emt 0:01:26]} Nc6 {[%emt 0:04:46]} 14. Qxg7 {[%emt 0:08:59]} O-O-O {[%emt 0:00:06]} 15. Nd2 {[%emt 0:00:56]} Rhg8 {[%emt 0:03:41]} 16. Qxf7 {[%emt 0:01:37]} Rdf8 {[%emt 0:03:32]} 17. Qh5 {[%emt 0:00:32]} Rf4 {[%emt 0:02:18]} 18. Rac1 {[%emt 0:04:07]} Kb8 {[%emt 0:01:52]} 19. Qe2 {[%emt 0:02:18]} Rfg4 {[%emt 0:01:27]} 20. g3 {[%emt 0:02:43]} Nd4 {[%emt 0:00:25]} 21. Bxd4 {[%emt 0:01:12]} Qxd4 {[%emt 0:00:02]} 22. Kh1 {[%emt 0:01:05]} h5 {[%emt 0:01:56]} 23. Nf3 {[%emt 0:05:06]} Qb6 {[%emt 0:00:03]} 24. h3 {[%emt 0:06:18]} R4g7 {[%emt 0:00:10]} 25. Kh2 {[%emt 0:01:01]} Rf7 {[%emt 0:01:03]} 26. Qe3 {[%emt 0:01:17]} d4 {[%emt 0:02:47]} 27. Nxd4 {[%emt 0:01:15]} Bg5 {[%emt 0:02:21]} 28. f4 {[%emt 0:01:16]} Bh6 {[%emt 0:00:03]} 29. h4 {[%emt 0:02:35]} Rfg7 {[%emt 0:00:14]} 30. Rg1 {[%emt 0:00:30]} Rg4 {[%emt 0:00:18]} 31. Rcf1 {[%emt 0:01:29]} Qd8 {[%emt 0:01:14]} 32. Kh3 {[%emt 0:00:52]} Rf8 {[%emt 0:21:37]} 33. Nf3 {[%emt 0:00:26]} Bxf4 {[%emt 0:01:02]} 34. gxf4 {[%emt 0:01:29]} Rfxf4 {[%emt 0:00:02]} 35. Rxg4 {[%emt 0:00:41]} hxg4+ {[%emt 0:00:20]} 36. Kg3 {[%emt 0:00:14]} Rxf3+ {[%emt 0:00:26]} 37. Rxf3 {[%emt 0:00:02]} gxf3 {[%emt 0:00:13]} 38. Qxf3 {[%emt 0:00:35]} Bc6 {[%emt 0:00:33]} 39. Be4 {[%emt 0:01:23]} Qg8+ {[%emt 0:00:28]} 40. Kh3 {[%emt 0:00:00]} Bb5 {[%emt 0:00:00]} 41. Bd3 {[%emt 0:03:43]} 1/2-1/2

[Event "Prague Festival-Futures 2022"]
[Site "Prague"]
[Date "2022.06.17"]
[Round "9.4"]
[White "Balint, Peter"]
[Black "Bouska, Jiri"]
[Result "1/2-1/2"]
[ECO "B36"]
[WhiteElo "2097"]
[BlackElo "2117"]
[Annotator "NA RC"]
[PlyCount "55"]
[EventDate "2022.06.07"]
[EventType "tourn"]
[EventCountry "CZE"]
[SourceTitle "playchess.com"]
[Source "ChessBase"]
[SourceQuality "1"]
[TimeControl "40/5400+30:1800+30"]

1. e4 {[%emt 0:00:03]} c5 {[%emt 0:00:09]} 2. Nf3 {[%emt 0:00:05]} Nc6 {[%emt 0:00:07]} 3. d4 {[%emt 0:00:05]} cxd4 {[%emt 0:00:09]} 4. Nxd4 {[%emt 0:00:06]} g6 {[%emt 0:00:06]} 5. c4 {[%emt 0:00:08]} Nf6 {[%emt 0:00:16]} 6. Nc3 {[%emt 0:00:05]} d6 {[%emt 0:00:06]} 7. Be2 {[%emt 0:00:26]} Nxd4 {[%emt 0:00:23]} 8. Qxd4 {[%emt 0:00:04]} Bg7 {[%emt 0:00:28]} 9. Be3 {[%emt 0:00:08]} O-O {[%emt 0:00:22]} 10. Qd3 {[%emt 0:00:20]} a5 {[%emt 0:03:24]} 11. O-O {[%emt 0:01:00]} a4 {[%emt 0:00:38]} 12. Rad1 {[%emt 0:03:24]} Qa5 {[%emt 0:03:16]} 13. Bd4 {[%emt 0:05:46]} Be6 {[%emt 0:02:39]} 14. f4 {[%emt 0:07:19]} Rfc8 {[%emt 0:32:37]} 15. b3 {[%emt 0:03:46]} axb3 {[%emt 0:00:20]} 16. axb3 {[%emt 0:00:09]} Qd8 {[%emt 0:00:23]} 17. f5 {[%emt 0:08:19]} Bd7 {[%emt 0:00:32]} 18. g4 {[%emt 0:10:55]} Bc6 {[%emt 0:03:34]} 19. Qf3 {[%emt 0:11:12]} Qf8 {[%emt 0:13:09]} 20. b4 {[%emt 0:13:53]} Ra3 {[%emt 0:03:18]} 21. Qf4 {[%emt 0:01:15]} b6 {[%emt 0:06:34]} 22. b5 {[%emt 0:07:12]} Bb7 {[%emt 0:00:28]} 23. e5 {[%emt 0:01:17]} dxe5 {[%emt 0:00:10]} 24. Bxe5 {[%emt 0:00:07]} Rc5 {[%emt 0:24:58]} 25. Bd4 {[%emt 0:02:01]} Rc8 {[%emt 0:00:37]} 26. Be5 {[%emt 0:13:08]} Rc5 {[%emt 0:00:14]} 27. Bd4 {[%emt 0:06:25]} Rc8 {[%emt 0:00:06]} 28. Be5 {[%emt 0:05:10]} 1/2-1/2

[Event "Prague Festival-Futures 2022"]
[Site "Prague"]
[Date "2022.06.17"]
[Round "9.5"]
[White "Zelbova, Lada"]
[Black "Peglau, Charis"]
[Result "1-0"]
[ECO "A47"]
[WhiteElo "1967"]
[BlackElo "2008"]
[Annotator "NA RC"]
[PlyCount "81"]
[EventDate "2022.06.07"]
[EventType "tourn"]
[EventCountry "CZE"]
[SourceTitle "playchess.com"]
[Source "ChessBase"]
[SourceQuality "1"]
[TimeControl "40/5400+30:1800+30"]

1. d4 {[%emt 0:00:03]} Nf6 {[%emt 0:00:08]} 2. Nf3 {[%emt 0:00:06]} e6 {[%emt 0:00:09]} 3. Bf4 {[%emt 0:00:30]} b6 {[%emt 0:00:22]} 4. e3 {[%emt 0:00:21]} Nh5 {[%emt 0:00:16]} 5. Bg5 {[%emt 0:00:51]} Be7 {[%emt 0:00:09]} 6. Bxe7 {[%emt 0:02:33]} Qxe7 {[%emt 0:00:06]} 7. c3 {[%emt 0:03:39]} Bb7 {[%emt 0:00:32]} 8. Nbd2 {[%emt 0:00:56]} O-O {[%emt 0:00:40]} 9. Bd3 {[%emt 0:01:13]} f5 {[%emt 0:01:06]} 10. O-O {[%emt 0:01:40]} d6 {[%emt 0:01:49]} 11. a4 {[%emt 0:02:51]} Nd7 {[%emt 0:02:23]} 12. a5 {[%emt 0:02:45]} Nhf6 {[%emt 0:03:35]} 13. a6 {[%emt 0:03:08]} Be4 {[%emt 0:01:11]} 14. Qc2 {[%emt 0:02:37]} Bxd3 {[%emt 0:03:56]} 15. Qxd3 {[%emt 0:00:06]} Kh8 {[%emt 0:03:06]} 16. Rfe1 {[%emt 0:03:23]} Rae8 {[%emt 0:20:19]} 17. b4 {[%emt 0:05:22]} d5 {[%emt 0:11:50]} 18. b5 {[%emt 0:05:48]} Ne4 {[%emt 0:02:13]} 19. c4 {[%emt 0:07:35]} Ndf6 {[%emt 0:05:54]} 20. Ne5 {[%emt 0:03:44]} Qb4 {[%emt 0:06:56]} 21. Nxe4 {[%emt 0:02:14]} fxe4 {[%emt 0:00:46]} 22. Qe2 {[%emt 0:02:00]} Qd6 {[%emt 0:02:21]} 23. Red1 {[%emt 0:04:56]} Nd7 {[%emt 0:09:05]} 24. Nc6 {[%emt 0:02:01]} Ra8 {[%emt 0:04:20]} 25. Rac1 {[%emt 0:01:51]} Rf5 {[%emt 0:02:11]} 26. Rd2 {[%emt 0:05:47]} Nb8 {[%emt 0:07:25]} 27. cxd5 {[%emt 0:03:01]} exd5 {[%emt 0:00:21]} 28. Qg4 {[%emt 0:01:11]} Rf8 {[%emt 0:02:22]} 29. Ne5 {[%emt 0:04:13]} c5 {[%emt 0:02:22]} 30. bxc6 {[%emt 0:02:09]} Nxa6 {[%emt 0:00:12]} 31. Qd7 {[%emt 0:02:53]} Qa3 {[%emt 0:04:51]} 32. Rdc2 {[%emt 0:01:56]} Nb4 {[%emt 0:02:16]} 33. Rc3 {[%emt 0:00:55]} Qb2 {[%emt 0:00:57]} 34. Nf7+ {[%emt 0:02:06]} Kg8 {[%emt 0:00:43]} 35. c7 {[%emt 0:01:46]} Nd3 {[%emt 0:00:30]} 36. R3c2 {[%emt 0:00:55]} Qxc1+ {[%emt 0:00:20]} 37. Rxc1 {[%emt 0:00:08]} Nxc1 {[%emt 0:00:04]} 38. Qxd5 {[%emt 0:01:54]} Ne2+ {[%emt 0:01:01]} 39. Kf1 {[%emt 0:00:24]} Nc3 {[%emt 0:00:38]} 40. Nh6+ {[%emt 0:00:00]} Kh8 {[%emt 0:00:00]} 41. Qg8+ {[%emt 0:49:29]} 1-0